[Event "1st Archibald 2019"]
[Site "Sochi"]
[Date "2019.05.17"]
[Round "7.3"]
[White "Stupak, Kirill"]
[Black "Kotsur, Pavel"]
[Result "1-0"]
[ECO "D30"]
[WhiteElo "2551"]
[BlackElo "2527"]
[Annotator "ChessBase"]
[PlyCount "87"]
[EventDate "2019.05.12"]
[EventType "swiss"]
[EventCountry "RUS"]
[SourceTitle "playchess.com"]
[Source "ChessBase"]
[SourceQuality "1"]
[TimeControl "5400+30"]

1. d4 {[%emt 0:06:18]} Nf6 {[%emt 0:00:00]} 2. c4 {[%emt 0:02:19]} e6 {[%emt 0:00:00]} 3. Nf3 {[%emt 0:00:03]} d5 {[%emt 0:01:45]} 4. Bg5 {[%emt 0:04:52]} Bb4+ {[%emt 0:04:26]} 5. Nbd2 {[%emt 0:00:05]} O-O {[%emt 0:09:13]} 6. e3 {[%emt 0:00:56]} Nbd7 {[%emt 0:07:11]} 7. Qc2 {[%emt 0:04:10]} h6 {[%emt 0:05:12]} 8. Bh4 {[%emt 0:01:48]} c5 {[%emt 0:20:26]} 9. dxc5 {[%emt 0:13:45]} dxc4 {[%emt 0:11:01]} 10. c6 {[%emt 0:11:27]} bxc6 {[%emt 0:05:33]} 11. Bxc4 {[%emt 0:00:00]} Be7 {[%emt 0:01:01]} 12. O-O {[%emt 0:03:10]} c5 {[%emt 0:00:04]} 13. Rfd1 {[%emt 0:06:22]} Nd5 {[%emt 0:04:20]} 14. Bg3 {[%emt 0:08:29]} Bb7 {[%emt 0:01:57]} 15. Be2 {[%emt 0:03:22]} Qc8 {[%emt 0:04:30]} 16. Nc4 {[%emt 0:01:23]} Ba6 {[%emt 0:00:47]} 17. Rac1 {[%emt 0:03:52]} Rd8 {[%emt 0:01:04]} 18. a3 {[%emt 0:00:56]} Qb7 {[%emt 0:04:05]} 19. Rd2 {[%emt 0:11:26]} Bb5 {[%emt 0:03:16]} 20. Rcd1 {[%emt 0:07:02]} Qa6 {[%emt 0:00:44]} 21. Bf1 {[%emt 0:01:17]} Rac8 {[%emt 0:03:39]} 22. e4 {[%emt 0:00:01]} N5b6 {[%emt 0:01:32]} 23. Bd6 {[%emt 0:04:03]} Bf6 {[%emt 0:02:24]} 24. Nxb6 {[%emt 0:01:28]} Nxb6 {[%emt 0:00:06]} 25. Bxb5 {[%emt 0:01:03]} Qxb5 {[%emt 0:00:00]} 26. e5 {[%emt 0:00:00]} Bg5 {[%emt 0:00:07]} 27. Nxg5 {[%emt 0:01:06]} hxg5 {[%emt 0:00:02]} 28. Rd3 {[%emt 0:00:17]} Qa4 {[%emt 0:01:29]} 29. Qe2 {[%emt 0:01:31]} Nd5 {[%emt 0:02:17]} 30. Be7 {[%emt 0:00:01]} Rd7 {[%emt 0:03:16]} 31. Bxg5 {[%emt 0:00:02]} Nf4 {[%emt 0:01:35]} 32. Bxf4 {[%emt 0:00:36]} Rxd3 {[%emt 0:00:04]} 33. Rxd3 {[%emt 0:00:00]} Qxf4 {[%emt 0:00:07]} 34. g3 {[%emt 0:00:54]} Qf5 {[%emt 0:00:13]} 35. Kg2 {[%emt 0:00:42]} c4 {[%emt 0:00:53]} 36. Rc3 {[%emt 0:01:44]} Qb1 {[%emt 0:00:03]} 37. Qc2 {[%emt 0:01:04]} Qa1 {[%emt 0:00:27]} 38. Qc1 {[%emt 0:00:40]} Qa2 {[%emt 0:00:08]} 39. b3 {[%emt 0:00:00]} Rc5 {[%emt 0:01:38]} 40. Rxc4 {[%emt 0:00:40]} Rxe5 {[%emt 0:00:00]} 41. Rh4 {[%emt 0:01:01]} f5 {[%emt 0:01:56]} 42. Qc8+ {[%emt 0:00:00]} Kf7 {[%emt 0:00:01]} 43. Qc7+ {[%emt 0:00:35]} Kf6 {[%emt 0:00:00]} 44. Rh7 {[%emt 0:00:11]} 1-0

[Event "1st Archibald 2019"]
[Site "Sochi"]
[Date "2019.05.17"]
[Round "7.6"]
[White "Oganian, Miran"]
[Black "Volkov, Sergey"]
[Result "0-1"]
[ECO "D15"]
[WhiteElo "2415"]
[BlackElo "2572"]
[Annotator "ChessBase"]
[PlyCount "132"]
[EventDate "2019.05.12"]
[EventType "swiss"]
[EventCountry "RUS"]
[SourceTitle "playchess.com"]
[Source "ChessBase"]
[SourceQuality "1"]
[TimeControl "5400+30"]

1. d4 {[%emt 0:15:08]} d5 {[%emt 0:00:00]} 2. c4 {[%emt 0:00:00]} c6 {[%emt 0:00:00]} 3. Nf3 {[%emt 0:00:07]} Nf6 {[%emt 0:00:00]} 4. Nc3 {[%emt 0:00:03]} a6 {[%emt 0:00:12]} 5. a4 {[%emt 0:00:00]} e6 {[%emt 0:00:09]} 6. Bg5 {[%emt 0:00:00]} a5 {[%emt 0:00:12]} 7. e3 {[%emt 0:00:06]} h6 {[%emt 0:00:12]} 8. Bh4 {[%emt 0:01:51]} Be7 {[%emt 0:00:16]} 9. Be2 {[%emt 0:01:13]} O-O {[%emt 0:00:16]} 10. Qb3 {[%emt 0:01:07]} Nbd7 {[%emt 0:02:02]} 11. O-O {[%emt 0:04:36]} b6 {[%emt 0:01:49]} 12. cxd5 {[%emt 0:06:37]} exd5 {[%emt 0:01:34]} 13. Rac1 {[%emt 0:03:21]} Bb7 {[%emt 0:00:44]} 14. Rfd1 {[%emt 0:00:00]} Rc8 {[%emt 0:01:22]} 15. Qc2 {[%emt 0:02:48]} Re8 {[%emt 0:01:59]} 16. Bd3 {[%emt 0:00:36]} Ne4 {[%emt 0:03:54]} 17. Bxe4 {[%emt 0:05:19]} Bxh4 {[%emt 0:00:32]} 18. Bh7+ {[%emt 0:03:46]} Kh8 {[%emt 0:00:17]} 19. Nxh4 {[%emt 0:05:16]} Qxh4 {[%emt 0:00:20]} 20. Bf5 {[%emt 0:00:17]} Qd8 {[%emt 0:00:27]} 21. e4 {[%emt 0:09:55]} Re7 {[%emt 0:05:30]} 22. exd5 {[%emt 0:10:16]} cxd5 {[%emt 0:02:09]} 23. Qb3 {[%emt 0:00:57]} g6 {[%emt 0:04:56]} 24. Bh3 {[%emt 0:02:15]} Rc4 {[%emt 0:07:24]} 25. Nxd5 {[%emt 0:00:41]} Bxd5 {[%emt 0:00:10]} 26. Rxc4 {[%emt 0:00:40]} Nf6 {[%emt 0:07:20]} 27. Qc2 {[%emt 0:01:54]} Bxc4 {[%emt 0:00:45]} 28. Qxc4 {[%emt 0:00:00]} Rc7 {[%emt 0:00:58]} 29. Qb3 {[%emt 0:00:57]} Nd5 {[%emt 0:01:04]} 30. g3 {[%emt 0:00:08]} Nb4 {[%emt 0:00:38]} 31. Bf1 {[%emt 0:04:38]} Kg8 {[%emt 0:09:51]} 32. Bb5 {[%emt 0:00:33]} Qd6 {[%emt 0:00:21]} 33. Qe3 {[%emt 0:01:14]} h5 {[%emt 0:03:12]} 34. Qe5 {[%emt 0:03:16]} Qd8 {[%emt 0:00:13]} 35. Re1 {[%emt 0:01:11]} Kh7 {[%emt 0:01:19]} 36. Qf4 {[%emt 0:01:28]} Nd5 {[%emt 0:01:58]} 37. Qf3 {[%emt 0:00:10]} Nf6 {[%emt 0:01:24]} 38. Rd1 {[%emt 0:07:04]} Qd6 {[%emt 0:01:39]} 39. b3 {[%emt 0:00:57]} Kg7 {[%emt 0:00:25]} 40. Bc4 {[%emt 0:01:19]} Re7 {[%emt 0:00:34]} 41. Bb5 {[%emt 0:03:48]} Ne4 {[%emt 0:04:12]} 42. h4 {[%emt 0:00:52]} Qb4 {[%emt 0:01:33]} 43. Bc4 {[%emt 0:01:42]} Nd6 {[%emt 0:02:24]} 44. Qd5 {[%emt 0:01:06]} Re6 {[%emt 0:04:16]} 45. Bf1 {[%emt 0:01:22]} Rf6 {[%emt 0:05:17]} 46. Rd3 {[%emt 0:00:20]} Rf5 {[%emt 0:01:28]} 47. Qc6 {[%emt 0:00:34]} Qe1 {[%emt 0:02:49]} 48. Rf3 {[%emt 0:01:27]} Ne4 {[%emt 0:07:38]} 49. Rxf5 {[%emt 0:00:03]} gxf5 {[%emt 0:00:05]} 50. Qc2 {[%emt 0:00:12]} Nd2 {[%emt 0:02:15]} 51. Qd3 {[%emt 0:00:07]} Kf6 {[%emt 0:04:00]} 52. Qe2 {[%emt 0:01:28]} Qxe2 {[%emt 0:01:00]} 53. Bxe2 {[%emt 0:00:00]} Nxb3 {[%emt 0:00:00]} 54. d5 {[%emt 0:01:24]} Nc5 {[%emt 0:03:34]} 55. Bb5 {[%emt 0:00:48]} Ke5 {[%emt 0:00:01]} 56. Bc6 {[%emt 0:00:07]} Ne4 {[%emt 0:02:05]} 57. Kg2 {[%emt 0:00:52]} Nf6 {[%emt 0:00:14]} 58. f4+ {[%emt 0:00:24]} Kd6 {[%emt 0:00:13]} 59. Kf3 {[%emt 0:00:00]} Nxd5 {[%emt 0:00:16]} 60. Be8 {[%emt 0:00:34]} Ke6 {[%emt 0:00:26]} 61. Ke2 {[%emt 0:00:31]} Nc3+ {[%emt 0:00:16]} 62. Kf3 {[%emt 0:00:41]} Ke7 {[%emt 0:02:35]} 63. Bc6 {[%emt 0:00:01]} b5 {[%emt 0:02:06]} 64. Ke3 {[%emt 0:00:26]} bxa4 {[%emt 0:00:21]} 65. Kd4 {[%emt 0:00:42]} Ne2+ {[%emt 0:00:44]} 66. Kc4 {[%emt 0:00:47]} a3 {[%emt 0:00:10]} 0-1

[Event "1st Archibald 2019"]
[Site "Sochi"]
[Date "2019.05.17"]
[Round "7.8"]
[White "Makoveev, Ilya"]
[Black "Bimiev, Ahmad"]
[Result "1-0"]
[ECO "B33"]
[WhiteElo "2290"]
[BlackElo "2196"]
[Annotator "NA RC"]
[PlyCount "65"]
[EventDate "2019.05.12"]
[EventType "swiss"]
[EventCountry "RUS"]
[SourceTitle "playchess.com"]
[Source "ChessBase"]
[SourceQuality "1"]
[TimeControl "5400+30"]

1. e4 {[%emt 0:00:00]} c5 {[%emt 0:00:30]} 2. Nf3 {[%emt 0:00:18]} Nc6 {[%emt 0:00:53]} 3. d4 {[%emt 0:00:32]} cxd4 {[%emt 0:00:06]} 4. Nxd4 {[%emt 0:00:09]} Nf6 {[%emt 0:00:10]} 5. Nc3 {[%emt 0:00:11]} e5 {[%emt 0:00:14]} 6. Ndb5 {[%emt 0:00:13]} d6 {[%emt 0:00:08]} 7. Bg5 {[%emt 0:00:19]} a6 {[%emt 0:00:07]} 8. Na3 {[%emt 0:00:13]} b5 {[%emt 0:00:14]} 9. Bxf6 {[%emt 0:00:23]} gxf6 {[%emt 0:01:34]} 10. Nd5 {[%emt 0:00:09]} Be7 {[%emt 0:01:22]} 11. g3 {[%emt 0:19:22] B33: Sicilian: Pelikan and Sveshnikov Variations} (11. Bd3 Rg8 12. O-O Bh3 13. Ne3 Be6 14. c4 bxc4 15. Bxc4 Nd4 16. b3 Rb8 17. Nac2 Nxc2 18. Qxc2 a5 19. Qd2 Kf8 20. Rac1 Rg7 21. Rc2 Qb6 22. Rd1 {1-0 (22) Schmidt,T (2597)-Blank,W (2500) ICCF email 2008}) 11... h5 {[%emt 0:08:25]} 12. Bg2 {[%emt 0:09:27]} Be6 {[%emt 0:05:44]} 13. c3 {[%emt 0:00:46]} h4 {[%emt 0:00:48]} 14. Nc2 {[%emt 0:00:44]} Bf8 $146 {[%emt 0:06:35]} ({Predecessor:} 14... Rc8 15. Nce3 Na5 16. b3 Nc6 17. O-O a5 18. a3 Rb8 {1-0 (38) Cowley,R (2064)-Lojanica,M (1946) Adelaide 2002}) 15. Nce3 {[%emt 0:07:20]} Ra7 {[%emt 0:00:55]} 16. a4 {[%emt 0:19:37]} b4 {[%emt 0:02:17]} 17. Qf3 {[%emt 0:11:39]} Bg7 {[%emt 0:05:12]} 18. Rd1 {[%emt 0:01:03]} ({Resist} 18. cxb4 $6 hxg3 19. fxg3 (19. Qxg3 Kf8 $14) 19... Rb7 $14) ({Don't play} 18. Nxb4 $6 Nxb4 19. cxb4 hxg3 $11) 18... hxg3 {[%emt 0:01:44]} 19. fxg3 {[%emt 0:02:03]} bxc3 {[%emt 0:00:17]} 20. bxc3 {[%emt 0:00:06]} Rh6 {[%emt 0:01:29]} 21. O-O {[%emt 0:09:37]} Qa5 {[%emt 0:11:34]} (21... Ne7 $16 {was necessary.} 22. c4 Qb8) 22. Ng4 {[%emt 0:05:58]} Rg6 {[%emt 0:03:21]} 23. Ngxf6+ {[%emt 0:00:38]} Kf8 {[%emt 0:00:27]} 24. Qh5 {[%emt 0:02:37]} Rh6 {[%emt 0:00:40]} 25. Qg5 {[%emt 0:00:49]} Rg6 {[%emt 0:00:21]} 26. Qh4 {[%emt 0:00:40]} Rh6 {[%emt 0:17:10]} 27. Nh5 {[%emt 0:00:11]} Qxa4 {[%emt 0:01:03]} 28. Qg5 $18 {[%emt 0:00:23]} Rh7 {[%emt 0:01:07]} 29. Qg6 {[%emt 0:03:18]} Qxd1 {[%emt 0:01:08]} 30. Qxh7 {[%emt 0:00:07]} Qg4 {[%emt 0:00:02]} 31. Bh3 {[%emt 0:00:33]} Qxh3 {[%emt 0:00:13]} 32. Qxg7+ {[%emt 0:00:01]} Ke8 {[%emt 0:00:05]} 33. Nhf6+ {[%emt 0:00:05]} 1-0

[Event "1st Archibald 2019"]
[Site "Sochi"]
[Date "2019.05.17"]
[Round "7.11"]
[White "Yandarbiev, Ruslan"]
[Black "Lugovskoy, Maxim"]
[Result "1/2-1/2"]
[ECO "C11"]
[WhiteElo "2279"]
[BlackElo "2445"]
[Annotator "RC"]
[PlyCount "97"]
[EventDate "2019.05.12"]
[EventType "swiss"]
[EventCountry "RUS"]
[SourceTitle "playchess.com"]
[Source "ChessBase"]
[SourceQuality "1"]
[TimeControl "5400+30"]

1. e4 {[%emt 0:01:24]} e6 {[%emt 0:00:00]} 2. d4 {[%emt 0:00:25]} d5 {[%emt 0:00:00]} 3. Nc3 {[%emt 0:00:08]} Nf6 {[%emt 0:00:00]} 4. e5 {[%emt 0:00:39]} Nfd7 {[%emt 0:00:00]} 5. f4 {[%emt 0:00:07]} c5 {[%emt 0:00:00]} 6. Nf3 {[%emt 0:00:07]} Be7 {[%emt 0:00:12]} 7. Be3 {[%emt 0:00:25]} b6 {[%emt 0:00:00]} 8. Qd2 {[%emt 0:10:47]} O-O {[%emt 0:00:00]} 9. g3 {[%emt 0:03:30]} a5 {[%emt 0:01:34]} 10. Be2 {[%emt 0:03:11]} Ba6 {[%emt 0:00:45]} 11. O-O {[%emt 0:01:24]} Bxe2 {[%emt 0:00:46]} 12. Qxe2 {[%emt 0:00:23]} Nc6 {[%emt 0:00:30]} 13. Nb5 {[%emt 0:00:38]} Na7 {[%emt 0:02:18]} 14. Nxa7 {[%emt 0:05:32]} Rxa7 {[%emt 0:00:06]} 15. c4 {[%emt 0:00:35]} cxd4 {[%emt 0:05:29]} 16. Nxd4 {[%emt 0:00:20]} Nb8 {[%emt 0:01:18]} 17. cxd5 {[%emt 0:06:35]} Qxd5 {[%emt 0:01:32]} 18. Nb5 {[%emt 0:00:19]} Rd7 {[%emt 0:00:32]} 19. Rfd1 {[%emt 0:08:29]} Qc6 {[%emt 0:02:58]} 20. Rdc1 {[%emt 0:04:42]} Qb7 {[%emt 0:03:59]} 21. Qg2 {[%emt 0:01:29]} Qxg2+ {[%emt 0:00:50]} 22. Kxg2 {[%emt 0:00:08]} Na6 {[%emt 0:00:00]} 23. Rd1 {[%emt 0:05:55]} Rfd8 {[%emt 0:00:48]} 24. Rxd7 {[%emt 0:00:39]} Rxd7 {[%emt 0:00:03]} 25. Rc1 {[%emt 0:00:29]} g5 {[%emt 0:02:44]} 26. fxg5 {[%emt 0:05:25]} Kg7 {[%emt 0:04:26]} 27. h4 {[%emt 0:05:10]} Rd5 {[%emt 0:12:54]} 28. Nc3 {[%emt 0:06:17]} Rd3 {[%emt 0:00:57]} 29. Bf4 {[%emt 0:00:39]} Nc5 {[%emt 0:06:56]} 30. Rd1 {[%emt 0:05:18]} Kg6 {[%emt 0:00:43]} 31. g4 {[%emt 0:01:08]} b5 {[%emt 0:00:27]} 32. Rxd3 {[%emt 0:02:19]} Nxd3 {[%emt 0:00:35]} 33. Kf3 {[%emt 0:00:41]} b4 {[%emt 0:04:11]} 34. Na4 {[%emt 0:01:13]} h5 {[%emt 0:00:07]} 35. gxh6 {[%emt 0:00:20]} Bxh4 {[%emt 0:00:37]} 36. b3 {[%emt 0:01:50]} Be7 {[%emt 0:04:42]} 37. Nb6 {[%emt 0:00:41]} Bd8 {[%emt 0:05:09]} 38. Nc4 {[%emt 0:00:11]} Bc7 {[%emt 0:00:46]} 39. g5 {[%emt 0:02:44]} Nc5 {[%emt 0:01:13]} 40. Be3 {[%emt 0:00:54]} Nd7 {[%emt 0:00:01]} 41. Ke4 {[%emt 0:00:22]} Bd8 {[%emt 0:00:59]} 42. Nd2 {[%emt 0:01:39]} Nf8 {[%emt 0:00:47]} 43. Nf3 {[%emt 0:01:00]} Nh7 {[%emt 0:01:09]} 44. Nd4 {[%emt 0:02:24]} Nxg5+ {[%emt 0:02:35]} 45. Bxg5 {[%emt 0:00:30]} Bxg5 {[%emt 0:00:00]} 46. Nc6 {[%emt 0:00:09]} Bxh6 {[%emt 0:00:00]} 47. Nxa5 {[%emt 0:00:00]} Bf8 {[%emt 0:00:31]} 48. Nc6 {[%emt 0:01:40]} Bc5 {[%emt 0:01:45]} 49. Nd8 {[%emt 0:03:28]} 1/2-1/2

[Event "1st Archibald 2019"]
[Site "Sochi"]
[Date "2019.05.17"]
[Round "7.21"]
[White "Najdin, Danil"]
[Black "Potapova, Margarita"]
[Result "1-0"]
[ECO "A64"]
[WhiteElo "2314"]
[BlackElo "2253"]
[Annotator "NA RC"]
[PlyCount "93"]
[EventDate "2019.05.12"]
[EventType "swiss"]
[EventCountry "RUS"]
[SourceTitle "playchess.com"]
[Source "ChessBase"]
[SourceQuality "1"]
[TimeControl "5400+30"]

1. d4 {[%emt 0:00:00]} Nf6 {[%emt 0:00:06]} 2. c4 {[%emt 0:00:05]} g6 {[%emt 0:00:04]} 3. g3 {[%emt 0:00:32]} c5 {[%emt 0:00:47]} 4. d5 {[%emt 0:00:40]} Bg7 {[%emt 0:00:23]} 5. Bg2 {[%emt 0:00:27]} d6 {[%emt 0:00:14]} 6. Nc3 {[%emt 0:00:56]} O-O {[%emt 0:01:02]} 7. Nf3 {[%emt 0:01:41]} e6 {[%emt 0:00:20]} 8. O-O {[%emt 0:00:25]} exd5 {[%emt 0:00:02]} 9. cxd5 {[%emt 0:00:06]} Re8 {[%emt 0:00:13]} 10. Nd2 {[%emt 0:00:56]} a6 {[%emt 0:00:07]} 11. a4 {[%emt 0:00:48]} Nbd7 {[%emt 0:00:30]} 12. e4 {[%emt 0:05:43]} Ne5 {[%emt 0:09:25] A64: Modern Benoni: Fianchetto Variation: 9...Nbd7 10 Nd2 a6 11 a4 Re8} 13. Qc2 {[%emt 0:02:41]} Rb8 {[%emt 0:05:23]} (13... h5 14. f4 Neg4 15. Nc4 Nh7 16. h3 Bd4+ 17. Kh1 Ngf6 18. Ne2 Rb8 19. a5 Qc7 20. Nxd4 cxd4 {1-0 (33) Gunina,V (2496)-Lagno,K (2529) Huaian 2016}) 14. f4 {[%emt 0:04:16]} Neg4 {[%emt 0:01:09]} 15. Nc4 {[%emt 0:01:45]} Nh5 {[%emt 0:03:16]} 16. Ne2 $146 {[%emt 0:03:25]} (16. Bf3 $11) ({Predecessor:} 16. Ra2 Bd4+ 17. Kh1 b5 18. axb5 axb5 19. Na5 Bd7 20. Nb3 {0-1 (37) Bruschetta,L-Amorosi,G Italy 1998}) 16... b5 {[%emt 0:01:45]} 17. axb5 {[%emt 0:00:17]} axb5 {[%emt 0:00:03]} 18. Na5 $1 {[%emt 0:01:50]} Qb6 {[%emt 0:01:44]} 19. Nc6 {[%emt 0:01:41]} (19. Bf3 $15) 19... c4+ {[%emt 0:04:14]} 20. Kh1 {[%emt 0:00:10]} Nf2+ {[%emt 0:24:59]} 21. Rxf2 {[%emt 0:00:03]} Qxf2 {[%emt 0:00:04]} 22. Nxb8 $2 {[%emt 0:14:14]} (22. Qd2 {is the only way for White.} Nf6 23. Nc3 Qxd2 24. Bxd2) 22... Bg4 {[%emt 0:01:50]} 23. Nc6 $2 {[%emt 0:10:25]} (23. Bd2 {is the only way for White.} Bf3 24. Bxf3 Qxf3+ {[%mdl 64] Double Attack} 25. Kg1) 23... Bxe2 {[%emt 0:01:45]} 24. Qd2 {[%emt 0:08:44]} Rxe4 {[%emt 0:11:02] Back Rank} 25. Ra8+ {[%emt 0:00:25]} Bf8 {[%emt 0:00:03]} 26. f5 {[%emt 0:02:26]} Ng7 {[%emt 0:13:41]} 27. f6 {[%emt 0:05:57]} Qxf6 {[%emt 0:02:45]} 28. Qc3 $2 {[%emt 0:03:47] [#]} ({Avoid the trap} 28. Rxf8+ $2 Kxf8 29. Kg1 Bd3 $19) (28. h4 $17 Bf3 29. Qf2) 28... Qf2 $3 {[%emt 0:07:58]} 29. Bh6 {[%emt 0:06:04] [#]} f6 {[%emt 0:00:32]} (29... Ne8 $142 $3 {[%mdl 512]} 30. Rxe8 (30. Bxf8 Bf3 31. Ne7+ Rxe7 32. Qg7+ Nxg7 33. Bxe7+ Ne8 {[%mdl 64] Clearance} 34. Rxe8+ Kg7 35. Bf8+ Kf6 36. Be7+ Ke5 37. Bd8+ Kf5 38. g4+ Kf4 39. Bg5+ {[%mdl 64] Decoy} Kxg5 40. h4+ Kxh4 41. Re2 Bxe2 42. Be4 Kg3 43. g5 Qh2#) 30... Rxe8 31. Bxf8 f6) 30. Qd2 {[%emt 0:00:35]} Qf5 {[%emt 0:02:03] [#]} 31. Nd4 $1 {[%emt 0:04:33]} Rxd4 {[%emt 0:07:18]} 32. Qxd4 {[%emt 0:00:31]} Qb1+ {[%emt 0:00:14]} 33. Qg1 {[%emt 0:00:01]} Qxb2 {[%emt 0:00:31]} 34. h3 {[%emt 0:02:24]} f5 {[%emt 0:00:05]} 35. Qe3 {[%emt 0:01:47]} Bd3 {[%emt 0:01:08]} 36. Bf4 {[%emt 0:02:57]} Qf6 {[%emt 0:00:40]} 37. Bg5 {[%emt 0:00:44]} Qf7 {[%emt 0:00:32]} 38. Ra7 {[%emt 0:01:10]} f4 {[%emt 0:00:24]} 39. Bxf4 {[%emt 0:01:51]} Qf5 $18 {[%emt 0:00:39]} (39... Nf5 {keeps fighting.} 40. Qe6 Qxe6 41. dxe6 c3) 40. Ra8 {[%emt 0:01:26]} Qd7 {[%emt 0:00:23]} 41. g4 {[%emt 0:02:50]} b4 {[%emt 0:00:33]} 42. Qb6 {[%emt 0:00:58]} b3 {[%emt 0:00:34]} 43. Bxd6 {[%emt 0:00:22]} Ne8 {[%emt 0:00:07]} 44. Bxf8 {[%emt 0:00:20]} Kxf8 {[%emt 0:00:41]} 45. Qf6+ {[%emt 0:00:30]} Kg8 {[%emt 0:00:04]} 46. d6 {[%emt 0:00:23]} Qf7 {[%emt 0:01:08]} 47. Rxe8+ {[%emt 0:00:05]} 1-0

[Event "1st Archibald 2019"]
[Site "Sochi"]
[Date "2019.05.17"]
[Round "7.22"]
[White "Kiriushin, Vladimir"]
[Black "Yakimenko, Alexander A."]
[Result "0-1"]
[ECO "E44"]
[WhiteElo "2041"]
[BlackElo "2059"]
[Annotator "NA RC"]
[PlyCount "68"]
[EventDate "2019.05.12"]
[EventType "swiss"]
[EventCountry "RUS"]
[SourceTitle "playchess.com"]
[Source "ChessBase"]
[SourceQuality "1"]
[TimeControl "5400+30"]

1. d4 {[%emt 0:00:00]} e6 {[%emt 0:00:20]} 2. c4 {[%emt 0:00:05]} Nf6 {[%emt 0:00:07]} 3. Nc3 {[%emt 0:00:09]} Bb4 {[%emt 0:00:09]} 4. e3 {[%emt 0:00:06]} b6 {[%emt 0:00:26]} 5. Nge2 {[%emt 0:00:13]} Bb7 {[%emt 0:00:13]} 6. a3 {[%emt 0:00:04]} Be7 {[%emt 0:00:26]} 7. Nf4 {[%emt 0:00:04]} d5 {[%emt 0:01:32]} 8. cxd5 {[%emt 0:00:27]} exd5 {[%emt 0:00:07]} 9. Be2 {[%emt 0:01:37]} O-O {[%emt 0:00:11]} 10. Bf3 {[%emt 0:00:49]} c6 {[%emt 0:04:08]} 11. O-O {[%emt 0:00:16]} Nbd7 {[%emt 0:00:23]} 12. b4 {[%emt 0:01:11]} b5 {[%emt 0:02:30]} 13. Bd2 {[%emt 0:03:14]} Nb6 {[%emt 0:01:53]} 14. Be2 {[%emt 0:11:47]} (14. a4 $11 {remains equal.}) 14... Re8 {[%emt 0:05:09]} 15. Nd3 {[%emt 0:02:12]} Bd6 {[%emt 0:04:24]} 16. Nc5 {[%emt 0:04:20]} Bc8 {[%emt 0:02:17]} 17. a4 $11 {[%emt 0:04:49]} a6 {[%emt 0:01:32]} 18. axb5 {[%emt 0:00:06]} axb5 {[%emt 0:00:18]} 19. Rxa8 {[%emt 0:00:02]} Nxa8 {[%emt 0:00:54]} 20. Qc2 {[%emt 0:02:24]} Qc7 {[%emt 0:04:21]} 21. h3 {[%emt 0:04:39]} Nb6 {[%emt 0:03:43]} 22. Ra1 {[%emt 0:01:42]} g6 {[%emt 0:05:56]} 23. Bd3 {[%emt 0:04:09]} Qe7 {[%emt 0:06:30]} 24. Re1 {[%emt 0:03:57]} Nc4 {[%emt 0:19:33]} 25. Bc1 {[%emt 0:00:58]} Be6 {[%emt 0:04:28]} 26. Qa2 {[%emt 0:06:54]} Bf5 {[%emt 0:07:16]} 27. Qb1 {[%emt 0:02:15]} Bxd3 {[%emt 0:00:18]} 28. Qxd3 {[%emt 0:00:20]} Ne4 {[%emt 0:00:45]} 29. f3 {[%emt 0:15:21]} Qh4 {[%emt 0:02:55]} 30. Rf1 {[%emt 0:03:35]} Nxc3 {[%emt 0:04:12]} 31. Qxc3 {[%emt 0:00:03]} Qg3 {[%emt 0:00:13]} 32. f4 {[%emt 0:01:38]} Nxe3 {[%emt 0:00:56]} 33. Rf2 {[%emt 0:03:38]} Bxf4 {[%emt 0:00:30]} 34. Qd2 {[%emt 0:04:31]} Qh2# {[%emt 0:00:08]} 0-1

[Event "1st Archibald 2019"]
[Site "Sochi"]
[Date "2019.05.18"]
[Round "8.1"]
[White "Bogdanovich, Stanislav"]
[Black "Aleksandrov, Aleksej"]
[Result "1-0"]
[ECO "A11"]
[WhiteElo "2581"]
[BlackElo "2603"]
[Annotator "RC"]
[PlyCount "83"]
[EventDate "2019.05.12"]
[EventType "swiss"]
[EventCountry "RUS"]
[SourceTitle "playchess.com"]
[Source "ChessBase"]
[SourceQuality "1"]
[TimeControl "5400+30"]

1. Nf3 {[%emt 0:03:00]} Nf6 {[%emt 0:00:00]} 2. g3 {[%emt 0:00:21]} d5 {[%emt 0:01:14]} 3. Bg2 {[%emt 0:00:10]} c6 {[%emt 0:00:36]} 4. O-O {[%emt 0:00:54]} Bf5 {[%emt 0:00:06]} 5. d3 {[%emt 0:01:44]} h6 {[%emt 0:00:05]} 6. c4 {[%emt 0:01:29]} e6 {[%emt 0:00:03]} 7. Nbd2 {[%emt 0:05:14]} Be7 {[%emt 0:02:30]} 8. Ne5 {[%emt 0:04:11]} O-O {[%emt 0:02:55]} 9. Ndf3 {[%emt 0:01:50]} Nbd7 {[%emt 0:05:57]} 10. Nxd7 {[%emt 0:03:12]} Nxd7 {[%emt 0:06:43]} 11. Be3 {[%emt 0:04:55]} dxc4 {[%emt 0:04:45]} 12. dxc4 {[%emt 0:00:57]} Qc7 {[%emt 0:00:40]} 13. Qd2 {[%emt 0:01:34]} Rfd8 {[%emt 0:04:11]} 14. Qc3 {[%emt 0:02:34]} Bf6 {[%emt 0:10:45]} 15. Qb3 {[%emt 0:04:04]} a5 {[%emt 0:09:33]} 16. Rad1 {[%emt 0:06:56]} Be7 {[%emt 0:00:25]} 17. Qc3 {[%emt 0:04:21]} a4 {[%emt 0:05:04]} 18. Bd4 {[%emt 0:05:07]} Bf8 {[%emt 0:08:29]} 19. Qe3 {[%emt 0:07:47]} Qa5 {[%emt 0:01:06]} 20. Qf4 {[%emt 0:05:42]} Bc5 {[%emt 0:09:10]} 21. g4 {[%emt 0:05:32]} Bg6 {[%emt 0:01:44]} 22. Bxc5 {[%emt 0:01:57]} Nxc5 {[%emt 0:00:47]} 23. Ne5 {[%emt 0:00:57]} Qb4 {[%emt 0:04:41]} 24. h4 {[%emt 0:03:08]} Qxb2 {[%emt 0:03:11]} 25. Rxd8+ {[%emt 0:03:06]} Rxd8 {[%emt 0:00:00]} 26. h5 {[%emt 0:00:02]} Bb1 {[%emt 0:11:05]} 27. Qxf7+ {[%emt 0:02:08]} Kh7 {[%emt 0:00:03]} 28. Qe7 {[%emt 0:01:51]} Qxe5 {[%emt 0:00:06]} 29. Qxd8 {[%emt 0:00:22]} Bxa2 {[%emt 0:00:00]} 30. Qd2 {[%emt 0:00:59]} Bb3 {[%emt 0:00:33]} 31. f4 {[%emt 0:00:12]} Qc7 {[%emt 0:01:21]} 32. g5 {[%emt 0:02:24]} a3 {[%emt 0:00:08]} 33. Qb4 {[%emt 0:01:09]} Qd6 {[%emt 0:02:31]} 34. g6+ {[%emt 0:00:09]} Kg8 {[%emt 0:00:01]} 35. Qxa3 {[%emt 0:00:35]} Qd4+ {[%emt 0:00:59]} 36. e3 {[%emt 0:00:53]} Qxe3+ {[%emt 0:00:06]} 37. Kh2 {[%emt 0:00:11]} Nd7 {[%emt 0:01:53]} 38. Qe7 {[%emt 0:02:09]} Qc5 {[%emt 0:01:18]} 39. Qxe6+ {[%emt 0:00:10]} Kh8 {[%emt 0:00:00]} 40. Qxd7 {[%emt 0:00:11]} Bxc4 {[%emt 0:00:20]} 41. Qe8+ {[%emt 0:02:27]} Bg8 {[%emt 0:00:15]} 42. Qe5 {[%emt 0:00:07]} 1-0